bitfinex-derivatives/quotes_SOLF0:USTF0_20260203
["timestamp","ask_amount","ask_price","bid_price","bid_amount"]
[1770143182787,73.37062566,98.057,97.973,68.88384055]
[1770143183086,73.37062566,98.056,97.973,68.88384055]
[1770143183280,73.37062566,98.056,97.931,143.122]
[1770143183281,1.77575935,98.065,97.976,68.88384055]
[1770143183482,73.37062566,98.089,97.992,68.88384055]
[1770143183684,73.37062566,98.089,98.006,143.0124]
[1770143183882,142.828,98.133,97.991,143.0335]
[1770143183883,73.37062566,98.132,98.033,68.88384055]
[1770143184083,73.37062566,98.132,98.035,9.1908]
[1770143184284,73.37062566,98.104,98.008,68.88384055]
[1770143184480,73.37062566,98.104,98.022,68.88384055]
[1770143184682,142.8751,98.101,98.022,68.88384055]
[1770143184885,73.37062566,98.104,98.022,68.88384055]
[1770143185292,73.37062566,98.094,97.993,68.88384055]
[1770143185488,73.37062566,98.047,97.965,68.88384055]
[1770143185690,73.37062566,98.047,97.966,9.1973]
[1770143185889,73.37062566,98.047,97.965,68.88384055]
[1770143186590,73.37062566,98.081,97.983,143.0454]
[1770143186792,9.187,98.077,97.987,9.1954]
[1770143186985,73.37062566,98.081,97.989,143.0369]
[1770143187189,73.37062566,98.081,98.003,68.88384055]
[1770143187491,73.37062566,98.093,98.012,68.88384055]
[1770143187684,73.37062566,98.093,97.961,143.077]
[1770143187685,73.37062566,98.072,97.976,68.88384055]
[1770143187890,73.37062566,98.06,97.976,68.88384055]
[1770143188493,142.9426,98.055,97.976,68.88384055]
[1770143188692,73.37062566,98.053,97.976,68.88384055]
[1770143189196,9.1895,98.05,97.976,68.88384055]
[1770143189496,73.37062566,98.053,97.976,68.88384055]
[1770143189691,73.37062566,98.051,97.976,68.88384055]
[1770143189891,142.9514,98.048,97.976,68.88384055]
[1770143190093,73.37062566,98.031,97.951,68.88384055]
[1770143190397,142.985,98.025,97.951,68.88384055]
[1770143190597,142.9882,98.023,97.951,68.88384055]
[1770143190793,152.2102,98.004,97.927,68.88384055]
[1770143190994,143.0196,98.002,97.927,68.88384055]
[1770143191292,143.0081,98.01,97.927,68.88384055]
[1770143191491,73.37062566,98.019,97.927,68.88384055]
[1770143191992,82.56322566,98.018,97.928,9.2009]
[1770143192394,142.9992,98.016,97.928,9.2009]
[1770143192796,9.1938,98.005,97.927,68.88384055]
[1770143193798,73.37062566,97.984,97.902,68.88384055]
[1770143194196,73.37062566,97.984,97.904,9.2031]
[1770143194494,9.1959,97.982,97.904,9.2031]
[1770143195099,9.1959,97.982,97.89,143.1811]
[1770143195100,73.37062566,98.009,97.919,68.88384055]
[1770143195300,73.37062566,97.99,97.919,68.88384055]
[1770143196390,70.7646721,97.985,97.895,68.88384055]
[1770143196591,70.7646721,97.976,97.895,68.88384055]
[1770143196826,79.9611721,97.976,97.897,68.88384055]
[1770143197202,70.7646721,97.999,97.91,68.88384055]
[1770143197393,70.7646721,97.999,97.913,68.88384055]
[1770143197702,29.11535569,98.04,97.912,143.1499]
[1770143197703,71.17601408,98.044,97.922,68.88384055]
[1770143197900,71.17601408,98.082,97.987,68.88384055]
[1770143198209,71.17601408,98.082,97.989,68.88384055]
[1770143198395,71.17601408,98.082,97.992,68.88384055]
[1770143198704,142.8749,98.101,97.956,68.88384055]
[1770143198705,71.17601408,98.068,97.956,68.88384055]
[1770143199002,71.17601408,98.059,97.963,68.88384055]
[1770143199504,71.17601408,98.059,97.967,211.95244055]
[1770143199811,66.67110061,98.045,97.941,68.88384055]
[1770143199998,66.67110061,98.045,97.95,68.88384055]
[1770143200192,66.67110061,98.045,97.953,68.88384055]
[1770143201203,66.67110061,98.045,97.956,68.88384055]
[1770143201401,142.922,98.069,97.971,68.88384055]
[1770143201402,66.67110061,98.069,97.971,68.88384055]
[1770143201697,66.67110061,98.069,97.972,68.88384055]
[1770143201903,66.67110061,98.069,97.977,68.88384055]
[1770143202105,73.1476941,98.05,97.977,68.88384055]
[1770143202407,73.1476941,98.05,97.931,143.1216]
[1770143202408,65.35961142,98.101,97.997,68.88384055]
[1770143202602,65.35961142,98.101,98.011,143.0039]
[1770143202796,65.35961142,98.101,98.011,9.1931]
[1770143203109,65.35961142,98.101,98.0,76.67192323]
[1770143203406,73.1476941,98.09,98.0,68.88384055]
[1770143203801,68.92236151,98.084,98.0,68.88384055]
[1770143204398,68.92236151,98.082,97.989,68.88384055]
[1770143204802,68.92236151,98.082,97.974,143.059]
[1770143204803,68.92236151,98.082,97.997,68.88384055]
[1770143205402,68.92236151,98.082,97.964,68.88384055]
[1770143205599,68.92236151,98.058,97.946,68.88384055]
[1770143205799,62.11247743,98.089,98.003,9.1938]
[1770143206006,62.11247743,98.089,98.004,68.88384055]
[1770143206506,62.11247743,98.089,98.004,78.07764055]
[1770143206705,62.11247743,98.087,98.004,68.88384055]
[1770143206908,62.11247743,98.084,98.004,68.88384055]
[1770143207407,9.1875,98.071,98.004,68.88384055]
[1770143207707,62.11247743,98.063,97.978,68.88384055]
[1770143208506,71.30077743,98.063,97.982,9.1958]
[1770143209001,62.11247743,98.063,97.98,143.0498]
[1770143209202,62.11247743,98.063,97.97,7.78808268]
[1770143209203,62.11247743,98.063,97.981,68.88384055]
[1770143209600,59.9157301,98.087,98.006,68.88384055]
[1770143210008,9.1877,98.069,97.981,68.88384055]
[1770143210508,142.9269,98.065,97.981,68.88384055]
[1770143210708,9.1888,98.058,97.981,68.88384055]
[1770143211309,9.1876,98.071,97.982,83.13671285]
[1770143211510,142.9172,98.072,97.982,73.94091285]
[1770143211702,9.1896,98.049,97.982,73.94091285]
[1770143211908,62.02916317,98.048,97.958,73.94091285]
[1770143212508,205.00136317,98.034,97.958,73.94091285]
[1770143212698,142.9816,98.028,97.958,73.94091285]
[1770143212903,7.78808268,98.03,97.958,73.94091285]
[1770143213210,62.02916317,98.033,97.958,73.94091285]
[1770143213609,9.1916,98.028,97.958,73.94091285]
[1770143215109,7.78808268,98.01,97.933,71.44421068]
[1770143215310,69.29247121,98.01,97.933,71.44421068]
[1770143215811,9.1937,98.006,97.933,71.44421068]
[1770143216007,69.29247121,98.01,97.933,71.44421068]
[1770143216209,9.1959,97.982,97.902,71.44421068]
[1770143216515,61.51882813,97.995,97.902,71.44421068]
[1770143216713,70.71352813,97.995,97.913,71.44421068]
[1770143217114,61.51882813,97.995,97.913,71.44421068]
[1770143217308,143.0131,98.006,97.913,71.44421068]
[1770143217309,150.82518268,97.99,97.913,71.44421068]
[1770143217514,143.0475,97.983,97.913,71.44421068]
[1770143217817,143.0892,97.954,97.881,71.44421068]
[1770143218511,143.1067,97.942,97.881,71.44421068]
[1770143218912,9.2012,97.925,97.852,71.44421068]
[1770143219714,9.2001,97.938,97.854,71.44421068]
[1770143220015,7.78808268,97.95,97.854,71.44421068]
[1770143220016,59.70079769,97.936,97.854,71.44421068]
[1770143220213,7.78808268,97.95,97.854,71.44421068]
[1770143220512,143.1205,97.933,97.854,71.44421068]
[1770143220709,143.1205,97.933,97.83,7.78808268]
[1770143220710,143.1564,97.908,97.827,71.44421068]
[1770143220903,59.70079769,97.918,97.827,71.44421068]
[1770143221215,59.70079769,97.943,97.849,71.44421068]
[1770143221513,59.70079769,97.934,97.849,71.44421068]
[1770143221814,9.2017,97.92,97.849,71.44421068]
[1770143222612,9.2027,97.91,97.849,71.44421068]
[1770143223212,143.1149,97.936,97.818,71.44421068]
[1770143223213,9.2046,97.89,97.818,71.44421068]
[1770143223408,7.78808268,97.9,97.818,71.44421068]
[1770143223612,57.47936481,97.9,97.818,71.44421068]
[1770143223911,56.92348268,97.882,97.793,71.44421068]
[1770143224312,66.12988268,97.871,97.793,71.44421068]
[1770143224508,143.2828,97.822,97.768,71.44421068]
[1770143224715,143.2828,97.822,97.708,143.4483]
[1770143224716,9.2122,97.808,97.741,71.44421068]
[1770143225115,56.92348268,97.83,97.741,71.44421068]
[1770143225311,143.343,97.781,97.714,71.44421068]
[1770143225513,143.3476,97.777,97.714,71.44421068]
[1770143226012,9.2147,97.783,97.714,71.44421068]
[1770143226218,143.3163,97.799,97.714,71.44421068]
[1770143226412,199.4862529,97.782,97.676,143.4953]
[1770143226714,56.1456529,97.782,97.679,71.44421068]
[1770143226911,143.3572,97.771,97.681,71.44421068]
[1770143227114,143.4001,97.742,97.651,71.44421068]
[1770143227314,63.93373558,97.73,97.651,71.44421068]
[1770143227513,56.1456529,97.73,97.651,71.44421068]
[1770143227716,143.3902,97.748,97.655,71.44421068]
[1770143228017,9.2181,97.746,97.655,71.44421068]
[1770143228220,56.1456529,97.757,97.661,71.44421068]
[1770143228513,9.2179,97.748,97.661,71.44421068]
[1770143228914,9.2196,97.73,97.661,71.44421068]
[1770143229316,143.4193,97.729,97.661,71.44421068]
[1770143229512,9.2202,97.724,97.661,71.44421068]
[1770143229713,143.3935,97.746,97.661,71.44421068]
[1770143230014,54.4762429,97.761,97.661,71.44421068]
[1770143230218,9.217,97.758,97.663,71.44421068]
[1770143230515,54.4762429,97.761,97.671,71.44421068]
[1770143230718,9.2156,97.773,97.681,71.44421068]
[1770143231116,143.3641,97.766,97.681,71.44421068]
[1770143231312,54.4762429,97.775,97.681,71.44421068]
[1770143231621,54.4762429,97.798,97.701,71.44421068]
[1770143232021,54.4762429,97.798,97.71,71.44421068]
[1770143232221,54.4762429,97.798,97.714,71.44421068]
[1770143232812,56.99461567,97.823,97.721,71.44421068]
[1770143233017,407.94,97.839,97.736,71.44421068]
[1770143233317,56.99461567,97.838,97.736,71.44421068]
[1770143233820,56.99461567,97.838,97.745,71.44421068]
[1770143234020,56.99461567,97.838,97.751,71.44421068]
[1770143234716,9.2095,97.837,97.751,71.44421068]
[1770143235423,67.69852993,97.83,97.733,71.44421068]
[1770143235619,67.69852993,97.83,97.656,12.60666663]
[1770143235620,143.2914,97.816,97.697,71.44421068]
[1770143235811,143.2715,97.829,97.696,143.4661]
[1770143235812,65.40401405,97.817,97.717,71.44421068]
[1770143236119,65.40401405,97.824,97.726,71.44421068]
[1770143236515,65.40401405,97.824,97.741,71.44421068]
[1770143236811,65.40401405,97.821,97.741,71.44421068]
[1770143237018,208.70121405,97.812,97.741,71.44421068]
[1770143237217,65.40401405,97.811,97.741,71.44421068]
[1770143237924,65.40401405,97.811,97.717,71.44421068]
[1770143237925,9.213,97.8,97.717,71.44421068]
[1770143238217,65.40401405,97.811,97.72,79.23229336]
[1770143238419,65.40401405,97.811,97.72,71.44421068]
[1770143238420,143.3073,97.805,97.72,71.44421068]
[1770143238720,66.87609101,97.791,97.691,71.44421068]
[1770143238912,9.2158,97.771,97.691,71.44421068]
[1770143239111,143.3627,97.767,97.691,71.44421068]
[1770143239315,66.87609101,97.776,97.691,71.44421068]
[1770143239512,76.09139101,97.776,97.691,71.44421068]
[1770143239712,66.87609101,97.776,97.691,71.44421068]
[1770143239916,7.78808268,97.8,97.697,214.90871068]
[1770143239917,68.4016969,97.8,97.697,214.90871068]
[1770143240114,68.4016969,97.8,97.715,71.44421068]
[1770143240425,68.4016969,97.8,97.72,71.44421068]
[1770143240625,9.2131,97.799,97.72,71.44421068]
[1770143242121,9.2116,97.815,97.726,70.41591465]
[1770143242423,69.13777697,97.828,97.735,70.41591465]
[1770143242616,69.13777697,97.852,97.752,70.41591465]
[1770143242817,69.13777697,97.852,97.77,78.20399733]
[1770143243026,69.13777697,97.852,97.77,70.41591465]
[1770143243232,143.2587,97.838,97.77,70.41591465]
[1770143243425,143.2444,97.848,97.77,70.41591465]
[1770143243823,69.13777697,97.852,97.77,70.41591465]
[1770143244018,143.2394,97.851,97.77,70.41591465]
[1770143244219,143.2443,97.848,97.77,70.41591465]
[1770143244420,143.2739,97.828,97.77,70.41591465]
[1770143244620,143.2798,97.824,97.746,70.41591465]
[1770143244828,213.57178418,97.812,97.722,70.41591465]
[1770143245026,70.27498418,97.832,97.733,70.41591465]
[1770143245222,70.27498418,97.83,97.733,70.41591465]
[1770143245424,9.2108,97.824,97.737,70.41591465]
[1770143246626,9.2119,97.812,97.737,70.41591465]
[1770143246818,70.27498418,97.83,97.737,70.41591465]
[1770143248228,9.2109,97.823,97.751,70.41591465]
[1770143248623,143.272,97.829,97.751,70.41591465]
[1770143248926,143.2775,97.825,97.751,70.41591465]
[1770143249119,143.2877,97.818,97.751,70.41591465]
[1770143249319,9.2133,97.797,97.751,70.41591465]
[1770143249520,143.3127,97.801,97.727,70.41591465]
[1770143249721,72.00986391,97.81,97.731,70.41591465]
[1770143249920,143.2838,97.821,97.708,143.4483]
[1770143249921,71.54871349,97.795,97.71,7.78808268]
[1770143250123,71.54871349,97.795,97.71,78.20399733]
[1770143250124,143.3277,97.791,97.71,78.20399733]
[1770143250323,71.54871349,97.795,97.71,78.20399733]
[1770143250527,9.2146,97.783,97.713,70.41591465]
[1770143250731,143.3365,97.785,97.713,70.41591465]
[1770143250925,71.54871349,97.781,97.713,70.41591465]
[1770143251131,71.54871349,97.781,97.689,70.41591465]
[1770143251328,71.54871349,97.781,97.691,70.41591465]
[1770143251525,71.54871349,97.808,97.704,70.41591465]
[1770143251729,71.54871349,97.834,97.75,7.78808268]
[1770143251927,71.54871349,97.834,97.751,70.41591465]
[1770143252232,143.292,97.815,97.73,7.78808268]
[1770143252432,143.3068,97.805,97.728,70.41591465]
[1770143252730,143.2949,97.813,97.704,70.41591465]
[1770143252731,72.96723135,97.792,97.704,70.41591465]
[1770143253030,72.96723135,97.788,97.704,70.41591465]
[1770143253229,72.96723135,97.788,97.706,70.41591465]
[1770143254022,9.2143,97.787,97.706,70.41591465]
[1770143254730,9.2153,97.776,97.706,70.41591465]
[1770143254928,72.96723135,97.788,97.706,70.41591465]
[1770143255325,72.96723135,97.788,97.71,78.20399733]
[1770143255933,72.96723135,97.788,97.712,9.2213]
[1770143256128,7.78808268,97.81,97.712,70.41591465]
[1770143256332,63.44700496,97.814,97.712,70.41591465]
[1770143257032,408.18,97.825,97.724,70.41591465]
[1770143257033,63.44700496,97.812,97.724,70.41591465]
[1770143257435,63.44700496,97.809,97.724,70.41591465]
[1770143257636,72.66010496,97.799,97.724,70.41591465]
[1770143257938,64.95030397,97.789,97.691,70.41591465]
[1770143258329,64.95030397,97.808,97.701,70.41591465]
[1770143258633,64.95030397,97.808,97.713,70.41591465]
[1770143258834,64.95030397,97.808,97.731,70.41591465]
[1770143259338,64.95030397,97.831,97.747,70.41591465]
[1770143259634,64.95030397,97.831,97.751,70.41591465]
[1770143259826,64.95030397,97.831,97.712,143.4425]
[1770143259827,7.83187366,97.89,97.774,143.3515]
[1770143260026,65.52658184,97.889,97.795,70.41591465]
[1770143260634,65.52658184,97.889,97.811,70.41591465]
[1770143262636,67.08230601,97.936,97.831,70.41591465]
[1770143262840,67.08230601,97.923,97.834,70.41591465]
[1770143263138,67.08230601,97.914,97.834,70.41591465]
[1770143263837,67.08230601,97.914,97.793,143.324]
[1770143263838,70.3806353,97.898,97.807,70.41591465]
[1770143264228,70.3806353,97.885,97.807,70.41591465]
[1770143264838,70.3806353,97.868,97.78,70.41591465]
[1770143265049,143.1956,97.881,97.78,70.41591465]
[1770143265050,70.3806353,97.851,97.78,70.41591465]
[1770143265337,143.2678,97.832,97.741,70.41591465]
[1770143265553,143.361,97.768,97.695,70.41591465]
[1770143265840,429.8722,97.816,97.695,70.41591465]
[1770143265841,143.3889,97.749,97.695,70.41591465]
[1770143266038,143.3889,97.749,97.636,12.60897446]
[1770143266039,143.4256,97.724,97.634,70.41591465]
[1770143266337,143.4256,97.724,97.622,12.60897446]
[1770143266338,71.26177215,97.756,97.649,70.41591465]
[1770143266532,71.26177215,97.756,97.661,70.41591465]
[1770143266933,143.3606,97.769,97.661,70.41591465]
[1770143267232,71.26177215,97.797,97.701,70.41591465]
[1770143267433,71.26177215,97.823,97.721,70.41591465]
[1770143267736,143.2492,97.845,97.741,70.41591465]
[1770143267737,71.26177215,97.844,97.741,70.41591465]
[1770143267943,71.26177215,97.844,97.76,7.83187366]
[1770143268240,143.1442,97.916,97.82,70.41591465]
[1770143268439,7.83187366,97.93,97.792,143.3247]
[1770143268440,58.74336537,97.944,97.85,78.24778831]
[1770143268633,143.1404,97.919,97.814,70.41591465]
[1770143268837,143.1517,97.911,97.831,70.41591465]
[1770143269043,143.203,97.876,97.81,7.83187366]
[1770143269338,143.2113,97.871,97.803,70.41591465]
[1770143269642,143.1885,97.886,97.803,70.41591465]
[1770143269843,152.4086,97.876,97.803,70.41591465]
[1770143270236,58.74336537,97.895,97.81,7.83187366]
[1770143270436,70.01934794,97.924,97.815,143.2904]
[1770143270636,70.01934794,97.924,97.789,12.60897446]
[1770143270637,213.06174794,97.986,97.88,143.1965]
[1770143270839,70.01934794,98.006,97.901,72.98857771]
[1770143271045,286.069,97.992,97.901,72.98857771]
[1770143271241,286.069,97.992,97.858,143.2286]
[1770143271242,143.0629,97.972,97.875,72.98857771]
[1770143271433,70.01934794,97.987,97.888,72.98857771]
[1770143271639,70.01934794,97.985,97.888,72.98857771]
[1770143271837,143.0044,98.012,97.899,72.98857771]
[1770143272041,286.0116,98.011,97.906,72.98857771]
[1770143272343,143.0141,98.006,97.908,72.98857771]
[1770143272542,286.0442,98.0,97.908,72.98857771]
[1770143273136,70.01934794,98.005,97.908,72.98857771]
[1770143273137,143.0385,97.989,97.908,72.98857771]
[1770143273337,70.01934794,98.005,97.881,72.98857771]
[1770143273338,143.0655,97.97,97.881,72.98857771]
[1770143273649,143.0401,97.988,97.892,72.98857771]
[1770143274145,143.0311,97.994,97.901,70.683753]
[1770143274542,143.0689,97.968,97.901,70.683753]
[1770143274848,143.0788,97.961,97.901,70.683753]
[1770143275047,143.0946,97.95,97.861,70.683753]
[1770143275252,72.68885246,97.984,97.864,70.683753]
[1770143275649,215.75905246,97.967,97.864,70.683753]
[1770143275945,143.0918,97.952,97.864,70.683753]
[1770143276145,72.63956307,97.952,97.864,70.683753]
[1770143276843,72.63956307,97.945,97.864,70.683753]
[1770143277040,72.63956307,97.926,97.818,70.683753]
[1770143277240,72.63956307,97.92,97.818,70.683753]
[1770143277653,72.63956307,97.91,97.818,70.683753]
[1770143277945,143.1797,97.892,97.766,143.3631]
[1770143278146,71.80515708,97.891,97.787,70.683753]
[1770143278344,71.80515708,97.919,97.817,70.683753]
[1770143278543,71.80515708,97.907,97.817,70.683753]
[1770143278846,143.1452,97.916,97.817,70.683753]
[1770143278847,71.80515708,97.903,97.817,70.683753]
[1770143279843,70.89633009,97.93,97.819,70.683753]
[1770143280250,70.89633009,97.927,97.819,70.683753]
[1770143280447,70.89633009,97.925,97.819,70.683753]
[1770143280647,70.89633009,97.913,97.819,70.683753]
[1770143280847,70.89633009,97.913,97.82,70.683753]
[1770143281052,70.89633009,97.95,97.843,70.683753]
[1770143281249,70.89633009,97.95,97.864,143.2189]
[1770143281450,70.89633009,97.95,97.873,143.2058]
[1770143281650,70.89633009,97.994,97.906,70.683753]
[1770143281848,68.62068551,98.023,97.921,70.683753]
[1770143282046,68.62068551,98.023,97.895,143.1741]
[1770143282047,68.62068551,98.05,97.967,143.0689]
[1770143282249,68.62068551,98.05,97.968,70.683753]
[1770143282551,68.62068551,98.077,97.979,70.683753]
[1770143283054,68.62068551,98.104,97.991,70.683753]
[1770143283251,211.51988551,98.084,97.991,70.683753]
[1770143283646,142.8962,98.086,97.991,70.683753]
[1770143283848,142.9771,98.031,97.944,74.88041248]
[1770143284155,142.8911,98.09,97.963,74.88041248]
[1770143284351,142.9313,98.062,97.963,74.88041248]
[1770143284552,142.9222,98.069,97.935,143.1158]
[1770143284748,142.9222,98.069,97.936,74.88041248]
[1770143284949,142.986,98.025,97.936,74.88041248]
[1770143285154,142.986,98.025,97.889,143.1825]
[1770143285155,143.0244,97.998,97.904,74.88041248]
[1770143285354,143.0719,97.966,97.875,74.88041248]
[1770143285555,143.0308,97.994,97.881,74.88041248]
[1770143285763,143.0193,98.002,97.899,74.88041248]
[1770143285954,152.2134,98.002,97.899,74.88041248]
[1770143286149,142.9966,98.018,97.908,74.21224849]
[1770143286355,143.0295,97.995,97.908,74.21224849]
[1770143286550,9.1943,98.0,97.908,74.21224849]
[1770143286754,3.24970764,98.01,97.911,74.21224849]
[1770143286951,3.24970764,98.04,97.95,217.30604849]
[1770143287155,3.24970764,98.04,97.919,143.1391]
[1770143287156,3.24970764,98.104,97.999,74.21224849]
[1770143287354,142.8995,98.084,97.999,74.21224849]
[1770143287551,142.8995,98.084,97.951,143.092]
[1770143287552,142.9384,98.057,97.97,74.21224849]
[1770143287756,142.9478,98.051,97.97,74.21224849]
[1770143288151,142.954,98.047,97.941,75.83710232]
[1770143288455,142.954,98.047,97.93,19.44929318]
[1770143288456,142.9779,98.03,97.948,75.83710232]
[1770143288653,19.44929318,98.08,97.924,143.1321]
[1770143288654,142.975,98.032,97.925,75.83710232]
[1770143288856,142.9574,98.044,97.936,75.83710232]
[1770143289051,142.9288,98.064,97.941,75.83710232]
[1770143289256,142.9796,98.029,97.941,75.83710232]
[1770143289452,143.0111,98.008,97.91,75.83710232]
[1770143289657,407.54,98.052,97.91,75.83710232]
[1770143289658,9.196,97.981,97.91,75.83710232]
[1770143289857,143.0277,97.996,97.91,75.83710232]
[1770143290361,152.2223,97.996,97.911,47.51]
[1770143290658,143.0014,98.014,97.914,75.83710232]
[1770143290960,143.054,97.978,97.911,47.51]
[1770143291255,143.0458,97.984,97.911,47.51]
[1770143291450,9.1963,97.978,97.911,47.51]
[1770143291657,143.0239,97.999,97.912,75.83710232]
[1770143292058,143.0413,97.987,97.912,75.83710232]
[1770143292259,143.0261,97.997,97.912,75.83710232]
[1770143292450,9.1962,97.979,97.911,47.51]
[1770143292654,143.0404,97.987,97.911,47.51]
[1770143292961,19.44929318,98.03,97.912,75.83710232]
[1770143292962,143.01,98.008,97.912,75.83710232]
[1770143293350,9.1939,98.004,97.912,75.83710232]
[1770143293858,9.1939,98.004,97.914,75.83710232]
[1770143294057,9.1923,98.021,97.923,75.83710232]
[1770143294253,143.0083,98.01,97.923,75.83710232]
[1770143294459,9.1947,97.995,97.923,75.83710232]
[1770143294658,9.1947,97.995,97.911,47.51]
[1770143294659,143.0367,97.99,97.911,47.51]
[1770143295160,142.9772,98.031,97.921,75.83710232]
[1770143295460,142.9716,98.035,97.911,47.51]
[1770143295654,143.0707,97.967,97.911,3.436e-05]
[1770143295855,74.91407718,97.989,97.854,286.4668]
[1770143296056,74.91407718,97.989,97.874,143.2055]
[1770143296363,74.91407718,98.02,97.905,143.1593]
[1770143296559,74.91407718,98.014,97.91,9.2026]
[1770143296762,143.0002,98.015,97.898,143.17]
[1770143296763,74.91407718,98.01,97.898,143.17]
[1770143297058,143.0231,97.999,97.898,143.17]
[1770143297253,143.0194,98.002,97.902,143.1644]
[1770143297455,74.91407718,98.004,97.913,143.1475]
[1770143297856,74.91407718,98.004,97.911,70.683753]
[1770143298264,74.91407718,98.001,97.911,70.683753]
[1770143298564,74.91407718,98.001,97.915,70.683753]
[1770143298762,74.91407718,98.001,97.917,152.3437]
[1770143298977,142.9859,98.025,97.929,70.683753]
[1770143299163,74.91407718,98.031,97.932,143.1204]
[1770143299356,74.91407718,98.031,97.93,143.1228]
[1770143299357,142.9434,98.054,97.954,70.683753]
[1770143299561,142.9434,98.054,97.955,143.0862]
[1770143299762,142.9479,98.051,97.955,143.0862]
[1770143299962,152.1373,98.051,97.955,9.1983]
[1770143300167,152.1373,98.051,97.955,152.2847]
[1770143300460,9.1911,98.033,97.954,70.683753]
[1770143301167,70.07134223,98.045,97.954,70.683753]
[1770143301661,142.9544,98.046,97.93,143.1228]
[1770143301662,142.9757,98.032,97.937,9.2]
[1770143301967,70.07134223,98.027,97.937,9.2]
[1770143302168,70.07134223,98.027,97.937,222.53709168]
[1770143302365,70.07134223,98.027,97.95,9.1989]
[1770143302868,70.07134223,98.027,97.938,70.22369168]
[1770143303867,70.07134223,98.027,97.944,70.22369168]
[1770143304474,70.07134223,98.027,97.953,9.1986]
[1770143305172,70.07134223,98.027,97.932,143.1197]
[1770143305469,67.15675109,98.027,97.932,143.1197]
[1770143305669,67.15675109,98.027,97.924,143.1323]
[1770143305870,67.15675109,98.027,97.917,70.22369168]
[1770143306570,67.15675109,98.027,97.93,143.1223]
[1770143306766,67.15675109,98.027,97.937,9.2001]
[1770143306969,67.15675109,98.027,97.948,143.0965]
[1770143307168,67.15675109,98.027,97.959,9.1979]
[1770143307373,70.07134223,98.059,97.98,143.0505]
[1770143307577,70.07134223,98.059,97.953,70.22369168]
[1770143307772,70.07134223,98.059,97.957,143.0838]
[1770143307972,70.07134223,98.059,97.975,143.0573]
[1770143308275,70.07134223,98.059,97.983,143.046]
[1770143308575,70.07134223,98.059,97.985,143.0425]
[1770143308776,70.07134223,98.059,97.977,9.1963]
[1770143309075,70.07134223,98.059,97.965,143.0721]
[1770143309076,70.07134223,98.059,97.985,143.0425]
[1770143309475,70.07134223,98.059,98.001,9.194]
[1770143310372,70.07134223,98.059,97.987,9.1953]
[1770143310875,70.07134223,98.059,97.985,143.0426]
[1770143311270,70.07134223,98.059,97.972,70.22369168]
[1770143311271,70.07134223,98.059,97.998,9.1943]
[1770143311577,70.07134223,98.084,98.005,143.0138]
[1770143311874,70.07134223,98.084,97.995,143.0281]
[1770143312075,70.07134223,98.084,97.987,143.0401]
[1770143312277,70.07134223,98.084,97.991,143.0341]
[1770143312474,70.07134223,98.084,97.992,143.0323]
[1770143312876,70.07134223,98.084,97.977,143.0542]
[1770143313468,70.07134223,98.073,97.95,143.0942]
[1770143313675,70.07134223,98.072,97.962,143.076]
[1770143313868,70.07134223,98.072,97.985,143.0429]
[1770143314073,70.07134223,98.072,97.979,143.0516]
[1770143314074,70.07134223,98.072,97.991,9.195]
[1770143314376,70.07134223,98.072,97.969,70.22369168]
[1770143314574,70.07134223,98.072,97.951,143.0917]
[1770143314575,70.07134223,98.066,97.951,143.0917]
[1770143314774,70.07134223,98.059,97.971,9.1969]
[1770143315276,70.07134223,98.046,97.961,143.0782]
[1770143315477,70.07134223,98.046,97.972,143.0622]
[1770143315679,70.07134223,98.046,97.964,213.29679168]
[1770143315978,70.07134223,98.046,97.978,9.1962]
[1770143316177,70.07134223,98.046,97.964,70.22369168]
[1770143316672,70.07134223,98.071,97.991,143.0335]
[1770143316878,70.07134223,98.071,97.971,70.22369168]
[1770143317176,70.07134223,98.071,97.982,143.0468]
[1770143317379,70.07134223,98.066,97.971,70.22369168]
[1770143317674,70.07134223,98.066,97.977,143.0548]
[1770143317978,70.07134223,98.062,97.988,9.1952]
[1770143318178,70.07134223,98.062,97.972,143.0613]
[1770143318179,70.07134223,98.062,97.98,143.0496]
[1770143318678,70.07134223,98.062,97.989,143.0373]
[1770143318874,70.07134223,98.062,97.981,70.22369168]
[1770143319875,70.07134223,98.06,97.982,9.1958]
[1770143320271,70.07134223,98.06,97.961,143.0783]
[1770143320471,70.07134223,98.046,97.951,70.22369168]
[1770143320678,70.07134223,98.033,97.932,70.22369168]
[1770143320978,142.9608,98.042,97.908,70.22369168]
[1770143320979,70.07134223,98.004,97.908,70.22369168]
[1770143321380,70.07134223,98.004,97.866,143.2166]